Cogmind - Beta 15 @@@ ROGUE MODE // 2025.07.28 @ 15:16:26 Player: Zoe Result: Destroyed by H-61 Shepherd with Heavy Assault Cannon Performance ------------- Evolutions (2) 1000 Regions Visited (5) 1000 Robots Destroyed (30) 150 Value Destroyed (492) 492 Prototype IDs (0) 0 Alien Tech Used (0) 0 Bonus (0) 0 TOTAL SCORE: 2642 Bonus ------- None Cogmind --------- Core Integrity 0/550 Matter 221/300 Energy 96/100 System Corruption 0% Temperature Cool (11) Movement Core (350) Ox6 Location -8/Materials Parts ------- > --- POWER (2) -------- (None) > --- PROPULSION (3) --- (None) > --- UTILITY (3) ------ Large Storage Unit > --- WEAPON (3) ------- (None) > --- INVENTORY (15) --- Light Ion Engine Light Nuclear Core Light Treads Light Treads Wheel Wheel Small Storage Unit Peak State ------------ > --- POWER ------------ Ion Engine Ion Engine > --- PROPULSION ------- VSS Leg VSS Leg VSS Leg > --- UTILITY ---------- Large Storage Unit Improved Terrain Scanner Targeting Computer > --- WEAPON ----------- Light Assault Rifle Light Assault Rifle Rocket Launcher > --- INVENTORY -------- Light Ion Engine Light Nuclear Core Light Treads Light Treads Aluminum Leg Wheel Wheel Small Storage Unit Medium Laser Heavy Explosive Trap [Rating: 21] Favorites ----------- Power Ion Engine Engine Ion Engine Propulsion Aluminum Leg Leg Aluminum Leg Wheel Wheel Utility Large Storage Unit Device Improved Terrain Scanner Storage Large Storage Unit Processor Targeting Computer Weapon Light Assault Rifle Energy Gun Medium Laser Ballistic Gun Light Assault Rifle Launcher Rocket Launcher Build | -11 -10 -10 -10 -9 -8 ------- Run | Yrd Mat Min Exi Min Mat Slots Evolved 4 | . . . . . 4 Power 1 | . . . . . 1 Propulsion 1 | . . . . . 1 Utility 1 | . . . . . 1 Weapon 1 | . . . . . 1 Parts Attached 20 | 8 1 6 . 1 4 Power 2 | 1 . 1 . . . Engine 2 | 1 . 1 . . . Core . | . . . . . . Reactor . | . . . . . . Propulsion 8 | 3 . 2 . . 3 Treads . | . . . . . . Leg 7 | 2 . 2 . . 3 Wheel 1 | 1 . . . . . Hover . | . . . . . . Flight . | . . . . . . Utility 4 | 2 1 1 . . . Device 1 | 1 . . . . . Storage 2 | 1 1 . . . . Processor 1 | . . 1 . . . Hackware . | . . . . . . Protection . | . . . . . . Artifact . | . . . . . . Weapon 6 | 2 . 2 . 1 1 Energy Gun 2 | 1 . 1 . . . Energy Cannon . | . . . . . . Ballistic Gun 3 | 1 . 1 . . 1 Ballistic Cannon . | . . . . . . Launcher 1 | . . . . 1 . Special Weapon . | . . . . . . Impact Weapon . | . . . . . . Slashing Weapon . | . . . . . . Piercing Weapon . | . . . . . . Special Melee Weapon . | . . . . . . Unidentified Prototypes . | . . . . . . Parts Lost 16 | . . 1 . 1 14 Power 2 | . . . . . 2 Propulsion 7 | . . . . 1 6 Utility 2 | . . . . . 2 Weapon 5 | . . 1 . . 4 Highest Loss Streak 12 | . . 1 . 1 12 To Critical Strikes . | . . . . . . Average Backups 9 | 5 6 9 10 10 8 Power 1 | . 1 1 2 2 1 Propulsion 5 | 3 4 5 6 5 4 Utility 1 | . . 1 2 2 1 Weapon . | 1 1 . . 1 . Tool/Special . | . . . . . . Unused Backups 5 | . . . . . 5 Power 2 | . . . . . 2 Propulsion 3 | . . . . . 3 Utility . | . . . . . . Weapon . | . . . . . . Tool/Special . | . . . . . . Average Slot Usage (%) 91 | . 100 99 100 88 82 Engine 14 | . 14 14 14 14 15 Leg 22 | . 28 28 28 17 19 Device 2 | . 14 . . . 7 Storage 12 | . 14 14 14 14 9 Processor 11 | . . 13 14 14 7 Energy Gun 12 | . 14 13 14 12 7 Ballistic Gun 14 | . 14 14 14 14 15 Peak Build Rating 21 | 9 9 9 9 9 21 Average Rating 8 | 5 9 8 8 7 12 On Entrance 7 | . 9 9 8 8 8 Naked Turns . | . . . . . . Heaviest Build 37 | 15 30 30 28 30 37 Greatest Support 36 | 20 20 20 20 20 36 Greatest Overweight (x) 3 | 3 1 1 1 2 3 Average Overweight (x) 1 | . . 1 1 1 . Largest Inventory Capacity 15 | 8 15 15 15 15 15 Average Capacity 14 | 7 13 15 15 15 15 Most Carried 15 | 8 7 15 15 15 14 Average Carried 12 | 5 6 13 14 14 9 Final Capacity 15 | 8 15 15 15 15 15 Final Carried 15 | 6 7 14 14 15 7 Class Distribution -------------------- 60% | Mutant 21% | Scavenger-Mutant 17% | Scavenger-Gunner Dominant Class ---------------- Mutant | -10/Materials Scavenger-Mutant | -10/Mines Scavenger-Mutant | -10/Exiles Mutant | -9/Mines Scavenger-Gunner | -8/Materials Resources | -11 -10 -10 -10 -9 -8 ----------- Run | Yrd Mat Min Exi Min Mat Matter Collected 616 | 304 13 117 . 110 72 Remotely . | . . . . . . Salvage Created 621 | 117 . 195 . 103 206 Parts 52 | 9 . 11 . 12 20 Haulers Intercepted . | . . . . . . Recyclers Shooed . | . . . . . . Parts Field Recycled . | . . . . . . Retrieved Matter . | . . . . . . Parts Self-Destructed . | . . . . . . Prevented . | . . . . . . Kills | -11 -10 -10 -10 -9 -8 ------- Run | Yrd Mat Min Exi Min Mat Combat Hostiles Destroyed 20 | . . 5 . 6 9 Guns 8 | . . 5 . . 3 AOE 12 | . . . . 6 6 Classes Destroyed 7 | 3 . 2 . . 2 Worker 3 | 1 . . . 1 1 Builder 4 | . . . . . 4 Tunneler 1 | 1 . . . . . Recycler 2 | 1 . 1 . . . Swarmer 13 | . . 3 . 3 7 Grunt 6 | . . 2 . 3 1 Specialist 1 | . . . . . 1 Best Kill Streak 12 | 1 . 3 . 4 12 Combat Bots Only 7 | . . 3 . 3 7 Max Kills in Single Turn 5 | 1 . 1 . 4 5 Gunslinging . | . . . . . . Exploded 4 | . . . . 3 4 Melee . | . . . . . . Uniques/NPCs Destroyed . | . . . . . . Combat | -11 -10 -10 -10 -9 -8 -------- Run | Yrd Mat Min Exi Min Mat Hostile Shots Fired 200 | . 4 31 . 31 134 Missed 67 | . 1 5 . 17 44 Hits 133 | . 3 26 . 14 90 Melee 1 | . . . . . 1 Projectile 132 | . 3 26 . 14 89 Critical Strikes 6 | . . 1 . 1 4 Damage Taken 2041 | . 36 333 . 283 1389 Core 676 | . . 16 . 101 559 Absorbed by Shields . | . . . . . . Core Remaining (%) 76 | 100 . . . 53 . Volleys Fired 66 | 8 1 21 . 9 27 Largest 3 | 2 2 2 . 2 3 Hottest 90 | 70 70 70 . 70 90 Shots Fired 133 | 16 2 37 . 18 60 Gun 122 | 16 2 37 . 13 54 Cannon . | . . . . . . Launcher 11 | . . . . 5 6 Special . | . . . . . . Kinetic 74 | 8 1 21 . 9 35 Thermal 48 | 8 1 16 . 4 19 Explosive 11 | . . . . 5 6 Electromagnetic . | . . . . . . Robot Hit Streak 11 | 5 5 10 . 2 11 Robot Miss Streak 4 | 1 . 3 . 4 4 Penetration Max . | . . . . . . Secondary Targets 1 | . . 1 . . . Max Gunslinging Chain 1 | . . 1 . . . Shots Hit Robots 81 | 11 2 27 . 6 35 Core Hits 51 | 4 1 10 . 12 24 Critical Kills . | . . . . . . Critical Parts Destroyed . | . . . . . . Critical Strikes 3 | . . . . . 3 Burn 3 | . . . . . 3 Melee Attacks . | . . . . . . Impact . | . . . . . . Slashing . | . . . . . . Piercing . | . . . . . . Sneak Attacks . | . . . . . . Combat Hostiles . | . . . . . . Follow-up Attacks . | . . . . . . Damage Inflicted 2238 | 138 23 357 . 498 1222 Guns 889 | 138 23 357 . 43 328 Cannons . | . . . . . . Explosions 1343 | . . . . 455 888 Melee . | . . . . . . Ramming 6 | . . . . . 6 Kinetic 487 | 63 11 192 . 31 190 Thermal 402 | 75 12 165 . 12 138 Explosive 1343 | . . . . 455 888 Electromagnetic . | . . . . . . Impact . | . . . . . . Slashing . | . . . . . . Piercing . | . . . . . . Highest Corruption . | . . . . . . Average Corruption . | . . . . . . Corruption Purged . | . . . . . . Corruption Blocked . | . . . . . . Overload Shots . | . . . . . . Overflow Damage 98 | . . . . 8 90 Projectiles . | . . . . . . Explosions 98 | . . . . 8 90 Melee . | . . . . . . Knockbacks . | . . . . . . Impact . | . . . . . . Kinetic . | . . . . . . Secondary . | . . . . . . Self-Inflicted Damage 105 | . . . . 105 . Shots 3 | . . . . 3 . Rammed . | . . . . . . Targets Rammed 1 | . . . . . 1 Kicked 1 | . . . . . 1 Crushed . | . . . . . . Highest Temperature 204 | 27 9 204 . 45 137 Average Temperature 52 | 11 6 98 . 19 41 Received Heat Transfer 777 | . 18 168 . 96 495 Siege Activations . | . . . . . . Martial Activations . | . . . . . . Shielding Activations . | . . . . . . Robots Disrupted . | . . . . . . Combat Hostiles . | . . . . . . Robots Corrupted . | . . . . . . Combat Hostiles . | . . . . . . Parts Fried . | . . . . . . Impact Corruptions . | . . . . . . Robots Melted . | . . . . . . Combat Hostiles . | . . . . . . Parts Melted 3 | 1 . . . . 2 Heat Transferred 1406 | 222 37 481 . 37 629 Parts Sabotaged . | . . . . . . Parts Stolen . | . . . . . . Parts Stripped . | . . . . . . Power Chain Reactions . | . . . . . . Alert | -11 -10 -10 -10 -9 -8 ------- Run | Yrd Mat Min Exi Min Mat Maximum Alert Level 1 | . . . . . 1 Low Security (%) 98 | 100 100 100 . 100 93 Level 1 1 | . . . . . 6 Level 2 . | . . . . . . Level 3 . | . . . . . . Level 4 . | . . . . . . Level 5 . | . . . . . . High Security . | . . . . . . Max Security . | . . . . . . Peak Influence 236 | 5 3 50 . 90 236 Initial 3 | . 3 . . . 3 Average 20 | . . 7 . 22 44 Influence Increases 684 | 15 . 125 . 178 366 Destroy 0b10 Robot/C 400 | . . 100 . 120 180 Destroy 0b10 Robot/NC 50 | 15 . 5 . 5 25 Destroy Leader 70 | . . 20 . 20 30 Trap Triggered on 0b10 30 | . . . . . 30 Disable Machine 30 | . . . . . 30 Destroy Structure 74 | . . . . 33 41 Lose Combat Pursuer 30 | . . . . . 30 Influence Decreases 542 | 10 5 125 . 168 234 Entered New Map 9 | . 2 . . . 7 Time Decay 393 | 10 3 115 . 168 97 Lost Part 140 | . . 10 . . 130 Squads Dispatched 5 | . 1 . . . 4 Investigation . | . . . . . . Extermination . | . . . . . . Reinforcement 5 | . 1 . . . 4 Assault . | . . . . . . Garrison . | . . . . . . Intercept . | . . . . . . Searches Triggered . | . . . . . . Construction Impeded 1 | . . . . . 1 Haulers Reinforced . | . . . . . . Active Scanning Responses . | . . . . . . Cargo Convoy Interrupts . | . . . . . . Stealth | -11 -10 -10 -10 -9 -8 --------- Run | Yrd Mat Min Exi Min Mat Distress Signals 1 | . . . . . 1 Communications Jammed . | . . . . . . Distress Signals . | . . . . . . Times Spotted 35 | . 1 5 . 6 23 Peak Tracking Total 7 | . 1 3 . 3 7 Tactical Retreats 2 | . . . . . 2 Traps | -11 -10 -10 -10 -9 -8 ------- Run | Yrd Mat Min Exi Min Mat Traps Triggered . | . . . . . . Indirectly . | . . . . . . Trap Hack Attempts . | . . . . . . Triggered . | . . . . . . Disarmed . | . . . . . . Reprogrammed . | . . . . . . Reused 3 | . . . . . 3 Traps Extracted . | . . . . . . Installed 4 | . . . . . 4 Triggered 3 | . . . . . 3 Most Traps Carried 4 | . . 4 4 4 4 Machines | -11 -10 -10 -10 -9 -8 ---------- Run | Yrd Mat Min Exi Min Mat Machines Disabled 2 | . . . . . 2 Max in Single Turn 1 | . . . . . 1 Machines Repaired . | . . . . . . Machines Dismantled . | . . . . . . Machines Sabotaged . | . . . . . . Overloaded Fab Kills . | . . . . . . Hacking | -11 -10 -10 -10 -9 -8 --------- Run | Yrd Mat Min Exi Min Mat Machines Accessed . | . . . . . . Terminals . | . . . . . . Fabricators . | . . . . . . Repair Stations . | . . . . . . Recycling Units . | . . . . . . Scanalyzers . | . . . . . . Garrison Access . | . . . . . . Total Hacks . | . . . . . . Successful . | . . . . . . Failed . | . . . . . . Catastrophic . | . . . . . . Database Lockouts . | . . . . . . Manual . | . . . . . . Terminals . | . . . . . . Fabricators . | . . . . . . Repair Stations . | . . . . . . Recycling Units . | . . . . . . Scanalyzers . | . . . . . . Garrison Access . | . . . . . . Terminal Hacks . | . . . . . . Fabricator Hacks . | . . . . . . Repair Station Hacks . | . . . . . . Recycling Unit Hacks . | . . . . . . Scanalyzer . | . . . . . . Garrison Access Hacks . | . . . . . . Unauthorized Hacks . | . . . . . . Terminals . | . . . . . . Fabricators . | . . . . . . Repair Stations . | . . . . . . Recycling Units . | . . . . . . Scanalyzers . | . . . . . . Garrison Access . | . . . . . . Data Cores Recovered . | . . . . . . Used . | . . . . . . Hacking Detections . | . . . . . . Full Trace Events . | . . . . . . Feedback Events . | . . . . . . Feedback Blocked . | . . . . . . Robot Schematics Acquired . | . . . . . . Robots Built . | . . . . . . Authchips . | . . . . . . Time . | . . . . . . Total Robot Build Rating . | . . . . . . Part Schematics Acquired . | . . . . . . Parts Built . | . . . . . . Authchips . | . . . . . . Time . | . . . . . . Total Part Build Rating . | . . . . . . Parts Repaired . | . . . . . . Time . | . . . . . . Parts Recycled . | . . . . . . Recycled Matter . | . . . . . . Retrieved Matter . | . . . . . . Retrieved Components . | . . . . . . Parts Scanalyzed . | . . . . . . Part Schematics Acquired . | . . . . . . Parts Damaged . | . . . . . . Bothacking | -11 -10 -10 -10 -9 -8 ------------ Run | Yrd Mat Min Exi Min Mat Used RIF Installer . | . . . . . . Robots Hacked . | . . . . . . Non-combat . | . . . . . . Combat . | . . . . . . Robot Hacks Applied . | . . . . . . Relay Couplers Released . | . . . . . . Fabnet Peak Effective % . | . . . . . . Robots Rewired . | . . . . . . Allies Hacked . | . . . . . . Hacks Repelled . | . . . . . . Allies | -11 -10 -10 -10 -9 -8 -------- Run | Yrd Mat Min Exi Min Mat Total Allies . | . . . . . . Largest Group . | . . . . . . Highest-Rated Group . | . . . . . . Highest-Rated Ally . | . . . . . . Total Orders . | . . . . . . Ally Attacks . | . . . . . . Total Damage . | . . . . . . Kills . | . . . . . . Allies Corrupted . | . . . . . . Allies Melted . | . . . . . . Intel | -11 -10 -10 -10 -9 -8 ------- Run | Yrd Mat Min Exi Min Mat Active Infowar (turns) 476 | 27 109 19 . . 321 Terrain 476 | 27 109 19 . . 321 Robot Analysis Total . | . . . . . . Derelict Logs Recovered 5 | . . 3 . 2 . Drone Launches . | . . . . . . Drone Recoveries . | . . . . . . Exploration | -11 -10 -10 -10 -9 -8 ------------- Run | Yrd Mat Min Exi Min Mat Turns Passed 2095 | 110 109 624 61 742 449 Spaces Moved 871 | 61 61 285 32 298 134 Core 21 | 21 . . . . . Treads . | . . . . . . Legs 845 | 35 61 285 32 298 134 Wheels 5 | 5 . . . . . Hover . | . . . . . . Flight . | . . . . . . Fastest Speed 50 | 50 120 190 190 190 90 Average Speed 197 | 109 171 190 190 237 180 Slowest Speed 330 | 200 190 190 190 260 330 Overloaded Moves . | . . . . . . Propulsion Burnouts . | . . . . . . Robots Hopped . | . . . . . . Potential Cave-ins . | . . . . . . Cave-ins Triggered . | . . . . . . Exploration Rate (%) 29 | 5 14 52 9 85 12 Regions Visited 5 Branch Regions 3 Pre-discovered Areas . | . . . . . . Known Exits Taken . | . . . . . . Unknown Exits Taken 5 | 1 1 1 1 1 . Scrap Searched 2 | . . 1 . 1 . Spaces Dug . | . . . . . . Terrain Destroyed 81 | . . . . 36 45 Melee . | . . . . . . Projectile . | . . . . . . AOE 81 | . . . . 36 45 Terrain Rammed . | . . . . . . Walls Destroyed . | . . . . . . Machines Disabled . | . . . . . . Actions | -11 -10 -10 -10 -9 -8 --------- Run | Yrd Mat Min Exi Min Mat Total 1125 | 86 63 329 33 313 301 Wait 123 | . . 8 . . 115 Move 866 | 60 60 284 31 297 134 Hop . | . . . . . . Pick Up 27 | 10 1 9 1 2 4 Fast Attach 3 | 3 . . . . . Attach 14 | 4 . 1 . 1 8 Detach . | . . . . . . Swap 15 | 1 1 5 . 4 4 Drop 6 | . . 1 1 . 4 Fire 66 | 8 1 21 . 9 27 Melee . | . . . . . . Ram . | . . . . . . Kick 1 | . . . . . 1 Crush . | . . . . . . Escape Stasis . | . . . . . . Rewire . | . . . . . . Trap 4 | . . . . . 4 Miscellaneous . | . . . . . . Route ------- -11/Scrapyard -10/Materials -10/Mines -10/Exiles -9/Mines -8/Materials History --------- Turn | Location | Event 6 | -11/Scrapyard | Discovered new exit (range 14) 111 | -11/Scrapyard | Entered Materials 148 | -10/Materials | Discovered new exit (range 15) 220 | -10/Materials | Entered Mines 251 | -10/Mines | Learned Materials terminal intel 293 | -10/Mines | Found a hidden stash of uninstalled traps 317 | -10/Mines | Build established: Mutant 786 | -10/Mines | Build established: Scavenger-Mutant 832 | -10/Mines | Deemed a non-threat by the Exiles lab entrance 834 | -10/Mines | Discovered new exit (range 5) 844 | -10/Mines | Entered Exiles 884 | -10/Exiles | Discovered new exit (range 14) 905 | -10/Exiles | Entered Mines 912 | -9/Mines | Received a Rocket Launcher from a helpful Derelict 942 | -9/Mines | Met a Derelict bent on vengeance 1238 | -9/Mines | Build established: Mutant 1361 | -9/Mines | Learned Materials security intel 1637 | -9/Mines | Discovered new exit (range 6) 1647 | -9/Mines | Entered Materials 1647 | -8/Materials | Evolved 4 slots: Power x1, Propulsion x1, Utility x1, Weapon x1 1649 | -8/Materials | Loaded intel: 12 terminal locations 1940 | -8/Materials | Build established: Scavenger-Gunner 2041 | -8/Materials | Destroyed 7 combat bots 2047 | -8/Materials | Core integrity fell below 50% 2087 | -8/Materials | Core integrity fell below 20% 2096 | -8/Materials | Destroyed by H-61 Shepherd with Heavy Assault Cannon Last Messages --------------- K-01 Serf collects debris. Critical hit (Burn: +37). The unstable cave ceiling collapses. K-01 Serf collects debris. VSS Leg destroyed. Imp. Terrain Scanner destroyed. K-01 Serf collects debris. Ion Engine destroyed. Acquired 10 matter. K-01 Serf collects debris. Acquired 2 matter. Lgt. Assault Rifle destroyed. Critical hit (Burn: +37). Acquired 11 matter. Critical hit (Burn: +37). Med. Laser destroyed. Aluminum Leg destroyed. ALERT: Suspicious intruders detected, dispatching Specialist reinforcements to area. VSS Leg destroyed. Map ----- +----------------------------------------------------+ | ?????????????????????????????????????????????????? | | ?????????????????????????????????????????????????? | | ?????????????????????????????????????????????????? | | ?????????????????????????????????????????????????? | | ?????????????????????????????????????????????????? | | ?????????????????????????????????????????????????? | | ?????????????????????????????????????????????????? | | ?????????????????????????????????????????????????? | | ?????????????????????????????????????????????????? | | ?????????????????????????????????????????????????? | | ??????????????????????????????#??????????????????? | | ?????????????????????????""???" ?????????????????? | | ????????????????????????"?" """ #??????????????? | | ??????????????????????? ""? """ #??#?#?# ????? | | ??????????????????????? ##????????????? | | ???????????????????????? #??????? ????? % | | ????????????????????????? #??????##????? ! | | ?????????????????????????? #??????????### | | ???????????????????#??????? #####????### % | | ???????????????????????#?##+ ######### # | | ??????????????#?????#???## ! | | ?????????????## ???????## % / | | ???????????### ####### g k * | | ?????????? k ####"# % | | ?????????? H w % k ##?????#?# | | ?????????? @ ##????#?# / | | ?????????????# ####### ###?????# | | ??????????????#???######## ######## | | ??????????????????# # # | | ??????????????????# T # # ###########"" | | ??????????????????# + %g #??##??????"T | | ??????????????????# ! # #% ! #????#????#"" | | ????????????????? # #! ##?#?#?#?????? | | ????????????????? # # #????#??#???? | | ????????????????? ######## ########?????#?????? | | ????????????? ????#???#??# # ! #??#????#????? | | ????????????????????#???## # !#?#???#???? ?" | | ?????????????????????????# + """ #??#??????? ?? | | ?????????????????????#???# # """ #????????????? | | ???????????????"? ???????# # """ !#? ? ??????? ? | | ????????????????????????## # # ?? ?#??#??? | | ????????????????#?#??????# ######## ?? ???#???? | | ??????????????????????#??# # #??? ????????? | | ?????????????????????????# # #?"?? #??????? | | ????????????????????#????# + """ #????????????? | | ????????????????#????????# # R" #????????????? | | ????????????????#????????# # """ #????????????? | | ?????????????????????????# #! #????????????? | | ?????????????????????????############????????????? | | ??????????????????????????????#?????????"????????? | +----------------------------------------------------+ Best States ------------- Heat Dissipation 31 Energy Generation 15 Energy Capacity 400 Matter Stores 300 Matter Capacity 300 Sight Range 16 Terrain Scan Range 16 Terrain Scan Density 10 Evasion (%) 55 Targeting Accuracy 5 Item Schematics ----------------- None Robot Schematics ------------------ None Fabricated ------------ Nothing Repaired ---------- Nothing Alien Tech Used ----------------- None Achievements -------------- None Challenges ------------ None Game ------ Seed ReactionSlugDrive Manual? 0 Play Time 00:17:11 Cumulative 13.5 hours Start 2025.07.28 @ 15:01:09 End 2025.07.28 @ 15:16:26 Sessions 1 Manual Loads 0 Difficulty Rogue Special Mode None Game No. 28 Rogue 25 Adventurer 3 Explorer 0 Win Type - Total 0 Types 0/0/0/0/0/0/0/0/0/0 Lore% 10 Gallery% 16 Achievement% 16 Wizard Run 0 Options --------- Layout 1 ASCII 0 Keyboard 0 Movement Mouse Keybinds 0 Fullscreen 1 Font 24/Smallcaps Map View 50x35 Zoom Use 0% Tactical HUD 0 Map Filters NONE Filters NONE Steam 1 RUN: a38467a9-615c-4e86-8223-c1088286be70